Cogmind - Beta 10.1 @@@ ROGUE MODE // 2020.09.28 @ 07:29:42 Player: Alexis Result: Destroyed by G-47 Trooper with Particle Gun Performance ------------- Evolutions (2) 1000 Regions Visited (4) 800 Robots Destroyed (28) 140 Value Destroyed (689) 689 Prototype IDs (3) 60 Alien Tech Used (0) 0 Bonus (35) 35 TOTAL SCORE: 2724 Bonus ------- Follower Combat Kills 35 Cogmind --------- Core Integrity 0/550 Matter 500/500 Energy 100/100 System Corruption 0% Temperature Cool (18) Movement Core (200) Ox3 Location -8/Materials Parts ------- > --- POWER (2) -------- (None) > --- PROPULSION (3) --- (None) > --- UTILITY (3) ------ Medium Storage Unit High-capacity Matter Pod Signal Interpreter > --- WEAPON (3) ------- (None) > --- INVENTORY (8) ---- Structural Scanner Improved ECM Suite Improved Shield Generator Peak State ------------ > --- POWER ------------ Light Nuclear Core Improved Deuterium Engine > --- PROPULSION ------- Light Treads Light Treads Improved Treads > --- UTILITY ---------- Medium Storage Unit High-capacity Matter Pod Signal Interpreter > --- WEAPON ----------- Heavy Laser Plasma Cannon Power Maul > --- INVENTORY -------- Light Deuterium Engine Light Nuclear Core Structural Scanner Improved ECM Suite Improved Shield Generator Lightning Gun Rocket Launcher Mining Laser [Rating: 28] Favorites ----------- Power Light Nuclear Core Engine Ion Engine Power Core Light Nuclear Core Propulsion Light Treads Treads Light Treads Leg Aluminum Leg Utility High-capacity Matter Pod Storage High-capacity Matter Pod Processor Signal Interpreter Weapon Power Maul Energy Gun Heavy Laser Energy Cannon Plasma Cannon Ballistic Gun Assault Rifle Launcher Rocket Launcher Special Weapon Mining Laser Impact Weapon Power Maul Build | -11 -10 -9 -9 -8 ------- Run | Scr Mat Mat Min Mat Slots Evolved 4 | . . 2 . 2 Power 1 | . . . . 1 Propulsion 1 | . . 1 . . Utility 1 | . . 1 . . Weapon 1 | . . . . 1 Parts Attached 44 | 6 8 12 2 16 Power 8 | 1 1 3 . 3 Engine 4 | 1 1 . . 2 Core 4 | . . 3 . 1 Reactor . | . . . . . Propulsion 13 | 2 2 4 . 5 Treads 6 | . . 3 . 3 Leg 7 | 2 2 1 . 2 Wheel . | . . . . . Hover . | . . . . . Flight . | . . . . . Utility 6 | 1 1 2 . 2 Device . | . . . . . Storage 5 | 1 1 1 . 2 Processor 1 | . . 1 . . Hackware . | . . . . . Protection . | . . . . . Artifact . | . . . . . Weapon 17 | 2 4 3 2 6 Energy Gun 4 | . . . . 4 Energy Cannon 5 | . 2 2 1 . Ballistic Gun 4 | 2 2 . . . Ballistic Cannon . | . . . . . Launcher 1 | . . . . 1 Special Weapon 1 | . . . . 1 Impact Weapon 2 | . . 1 1 . Slashing Weapon . | . . . . . Piercing Weapon . | . . . . . Special Melee Weapon . | . . . . . Unidentified Prototypes 1 | . . . . 1 Parts Lost 28 | . 4 7 . 17 Power 7 | . 1 2 . 4 Propulsion 8 | . . 2 . 6 Utility . | . . . . . Weapon 13 | . 3 3 . 7 Highest Loss Streak 8 | . 2 7 . 8 Average Slot Usage (%) 88 | . 89 78 98 87 Engine 5 | . 13 . . 7 Core 6 | . . 9 11 7 Treads 16 | . . 9 33 22 Leg 10 | . 28 12 . 1 Storage 20 | . 19 22 22 18 Processor 7 | . . 11 11 9 Energy Gun 2 | . . . . 7 Energy Cannon 7 | . 7 6 10 5 Ballistic Gun 6 | . 19 5 . . Impact Weapon 4 | . . 1 10 7 Naked Turns . | . . . . . Heaviest Build 41 | 13 18 18 27 41 Greatest Support 63 | 20 20 63 63 63 Greatest Overweight (x) 5 | 2 . 5 . 4 Average Overweight (x) . | . . . . . Largest Inventory Capacity 10 | 6 6 8 8 10 Average Capacity 7 | 5 6 6 8 8 Most Carried 9 | 4 6 6 7 9 Average Carried 5 | 1 4 3 5 6 Final Capacity 8 | 6 6 8 8 8 Final Carried 7 | 4 4 1 7 3 Class Distribution -------------------- 100% | Mutant Dominant Class ---------------- Mutant | -10/Materials Mutant | -9/Materials Mutant | -9/Mines Mutant | -8/Materials Resources | -11 -10 -9 -9 -8 ----------- Run | Scr Mat Mat Min Mat Matter Collected 887 | 108 217 258 209 95 Remotely . | . . . . . Salvage Created 833 | . 262 252 99 220 Parts 55 | . 23 18 5 9 Haulers Intercepted . | . . . . . Recyclers Shooed . | . . . . . Parts Field Recycled . | . . . . . Retrieved Matter . | . . . . . Parts Self-Destructed . | . . . . . Prevented . | . . . . . Kills | -11 -10 -9 -9 -8 ------- Run | Scr Mat Mat Min Mat Combat Hostiles Destroyed 25 | . 9 10 2 4 Melee 5 | . . 2 2 1 Guns 10 | . 9 1 . . Cannons 8 | . . 7 . 1 AOE 1 | . . . . 1 Classes Destroyed 6 | . 3 1 . 2 Worker 2 | . 2 . . . Watcher 1 | . . 1 . . Swarmer 11 | . 6 5 . . Grunt 12 | . 3 5 2 2 Brawler 1 | . . . . 1 Sentry 1 | . . . . 1 Best Kill Streak 5 | . 5 5 2 1 Combat Bots Only 4 | . 4 4 2 1 Max Kills in Single Turn 1 | . 1 1 1 1 Gunslinging . | . . . . . Exploded 1 | . . . . 1 Melee 1 | . . 1 1 1 Uniques/NPCs Destroyed . | . . . . . Combat | -11 -10 -9 -9 -8 -------- Run | Scr Mat Mat Min Mat Damage Taken 3549 | . 782 741 171 1855 Core 935 | . 178 176 31 550 Absorbed by Shields . | . . . . . Core Remaining (%) 58 | 100 28 . 48 . Volleys Fired 81 | . 41 22 2 16 Largest 2 | . 2 2 1 2 Hottest 149 | . 80 80 80 149 Shots Fired 127 | . 75 30 2 20 Gun 96 | . 72 8 . 16 Cannon 29 | . 3 22 2 2 Launcher . | . . . . . Special 2 | . . . . 2 Kinetic 80 | . 72 8 . . Thermal 35 | . 3 22 2 8 Explosive . | . . . . . Electromagnetic 12 | . . . . 12 Robot Hit Streak 6 | . 6 5 . 6 Robot Miss Streak 7 | . 7 4 2 3 Penetration Max . | . . . . . Secondary Targets 2 | . 2 . . . Max Gunslinging Chain 1 | . 1 . . . Shots Hit Robots 79 | . 38 20 3 18 Core Hits 42 | . 16 13 3 10 Critical Hits . | . . . . . Critical Kills . | . . . . . Critical Parts Destroyed . | . . . . . Melee Attacks 24 | . . 12 4 8 Impact 24 | . . 12 4 8 Slashing . | . . . . . Piercing . | . . . . . Sneak Attacks . | . . . . . Combat Hostiles . | . . . . . Follow-up Attacks . | . . . . . Damage Inflicted 1409 | . 274 438 116 581 Guns 553 | . 274 53 . 226 Cannons 301 | . . 227 25 49 Explosions 201 | . . . . 201 Melee 337 | . . 144 91 102 Ramming 17 | . . 14 . 3 Kinetic 327 | . 274 53 . . Thermal 538 | . . 227 25 286 Explosive . | . . . . . Electromagnetic 190 | . . . . 190 Impact 337 | . . 144 91 102 Slashing . | . . . . . Piercing . | . . . . . Highest Corruption . | . . . . . Average Corruption . | . . . . . Corruption Purged . | . . . . . Overload Shots . | . . . . . Overflow Damage 30 | . . 9 . 21 Projectiles . | . . . . . Explosions 21 | . . . . 21 Melee 9 | . . 9 . . Knockbacks 3 | . . 2 1 . Impact 3 | . . 2 1 . Kinetic . | . . . . . Secondary . | . . . . . Self-Inflicted Damage 98 | . . . . 98 Shots 2 | . . . . 2 Rammed 12 | . . 8 . 4 Targets Rammed 13 | . . 9 . 4 Kicked . | . . . . . Crushed 1 | . . 1 . . Highest Temperature 196 | . 45 162 53 196 Average Temperature 57 | . 13 51 29 78 Received Heat Transfer 1233 | . 156 48 102 927 Siege Activations . | . . . . . Robots Corrupted 1 | . . . . 1 Combat Hostiles 1 | . . . . 1 Parts Fried 2 | . . . . 2 Impact Corruptions 1 | . . 1 . . Robots Melted . | . . . . . Combat Hostiles . | . . . . . Parts Melted 6 | . . 1 . 5 Heat Transferred 1005 | . . 481 50 474 Parts Sabotaged . | . . . . . Parts Stolen . | . . . . . Parts Stripped . | . . . . . Power Chain Reactions 2 | . . . . 2 Missiles Intercepted . | . . . . . Alert | -11 -10 -9 -9 -8 ------- Run | Scr Mat Mat Min Mat Peak Influence 236 | . 232 236 63 120 Initial 19 | . . 19 13 . Average 80 | . 124 120 38 56 Maximum Alert Level 1 | . 1 1 . . Low Security (%) 88 | 100 67 82 100 100 Level 1 11 | . 32 17 . . Level 2 . | . . . . . Level 3 . | . . . . . Level 4 . | . . . . . Level 5 . | . . . . . High Security . | . . . . . Max Security . | . . . . . Squads Dispatched 5 | . . 2 . 3 Investigation 4 | . . 2 . 2 Extermination . | . . . . . Reinforcement 1 | . . . . 1 Assault . | . . . . . Garrison . | . . . . . Intercept . | . . . . . Construction Impeded . | . . . . . Haulers Reinforced . | . . . . . Stealth | -11 -10 -9 -9 -8 --------- Run | Scr Mat Mat Min Mat Distress Signals 9 | . 2 4 . 3 Communications Jammed . | . . . . . Distress Signals . | . . . . . Times Spotted 62 | . 16 20 3 23 Peak Tracking Total 9 | . 6 7 3 9 Tactical Retreats 8 | . . 2 . 6 Traps | -11 -10 -9 -9 -8 ------- Run | Scr Mat Mat Min Mat Traps Triggered 2 | . . 2 . . Indirectly . | . . . . . Trap Hack Attempts . | . . . . . Triggered . | . . . . . Disarmed . | . . . . . Reprogrammed . | . . . . . Reused . | . . . . . Traps Extracted . | . . . . . Installed . | . . . . . Triggered . | . . . . . Machines | -11 -10 -9 -9 -8 ---------- Run | Scr Mat Mat Min Mat Machines Disabled 2 | . 1 . . 1 Max in Single Turn 1 | . 1 . . 1 Machines Sabotaged . | . . . . . Garrisons Compromised . | . . . . . Overloaded Fab Kills . | . . . . . Fab Network Shutdowns . | . . . . . Hacking | -11 -10 -9 -9 -8 --------- Run | Scr Mat Mat Min Mat Machines Accessed 6 | . 1 2 1 2 Terminals 5 | . 1 2 . 2 Fabricators . | . . . . . Repair Stations . | . . . . . Recycling Units . | . . . . . Scanalyzers . | . . . . . Garrison Access . | . . . . . Total Hacks 21 | . 5 5 1 10 Successful 14 | . 4 4 1 5 Failed 6 | . 1 1 . 4 Catastrophic 2 | . . 1 . 1 Database Lockouts 1 | . . . . 1 Manual . | . . . . . Terminals 20 | . 5 5 . 10 Fabricators . | . . . . . Repair Stations . | . . . . . Recycling Units . | . . . . . Scanalyzers . | . . . . . Garrison Access . | . . . . . Terminal Hacks 14 | . 4 4 1 5 Record 10 | . 2 3 . 5 Prototype ID Bank 1 | . 1 . . . Open Door 1 | . . . 1 . Locate Traps 1 | . 1 . . . Zone Layout 1 | . . 1 . . Fabricator Hacks . | . . . . . Repair Station Hacks . | . . . . . Recycling Unit Hacks . | . . . . . Scanalyzer . | . . . . . Garrison Access Hacks . | . . . . . Unauthorized Hacks . | . . . . . Terminals . | . . . . . Fabricators . | . . . . . Repair Stations . | . . . . . Recycling Units . | . . . . . Scanalyzers . | . . . . . Garrison Access . | . . . . . Data Cores Recovered . | . . . . . Used . | . . . . . Hacking Detections 5 | . 1 2 . 2 Full Trace Events 3 | . . 1 . 2 Feedback Events . | . . . . . Feedback Blocked . | . . . . . Robot Schematics Acquired . | . . . . . Robots Built . | . . . . . Matter . | . . . . . Time . | . . . . . Total Robot Build Rating . | . . . . . Part Schematics Acquired . | . . . . . Parts Built . | . . . . . Matter . | . . . . . Time . | . . . . . Total Part Build Rating . | . . . . . Parts Repaired . | . . . . . Time . | . . . . . Parts Recycled . | . . . . . Recycled Matter . | . . . . . Retrieved Matter . | . . . . . Retrieved Components . | . . . . . Parts Scanalyzed . | . . . . . Part Schematics Acquired . | . . . . . Parts Damaged . | . . . . . Bothacking | -11 -10 -9 -9 -8 ------------ Run | Scr Mat Mat Min Mat Used RIF Installer . | . . . . . Robots Hacked . | . . . . . Non-combat . | . . . . . Combat . | . . . . . Robot Hacks Applied . | . . . . . Relay Couplers Released . | . . . . . Robots Rewired . | . . . . . Allies Hacked . | . . . . . Hacks Repelled . | . . . . . Allies | -11 -10 -9 -9 -8 -------- Run | Scr Mat Mat Min Mat Total Allies 1 | . . . 1 . Largest Group 1 | . . . 1 1 Highest-Rated Group 31 | . . . 31 31 Highest-Rated Ally 31 | . . . 31 31 Total Orders . | . . . . . Ally Attacks 4 | . . . . 4 Total Damage 84 | . . . . 84 Kills 1 | . . . . 1 Allies Corrupted . | . . . . . Allies Melted . | . . . . . Intel | -11 -10 -9 -9 -8 ------- Run | Scr Mat Mat Min Mat Robot Analysis Total . | . . . . . Derelict Logs Recovered . | . . . . . Drone Launches . | . . . . . Drone Recoveries . | . . . . . Exploration | -11 -10 -9 -9 -8 ------------- Run | Scr Mat Mat Min Mat Turns Passed 1971 | 68 484 413 451 555 Spaces Moved 1092 | 46 291 209 261 285 Core 20 | 14 . 1 . 5 Treads 576 | . . 67 261 248 Legs 496 | 32 291 141 . 32 Wheels . | . . . . . Hover . | . . . . . Flight . | . . . . . Fastest Speed 50 | 50 120 120 160 120 Average Speed 141 | 115 120 134 160 157 Slowest Speed 300 | 150 120 300 160 250 Overloaded Moves . | . . . . . Propulsion Burnouts . | . . . . . Robots Hopped . | . . . . . Cave-ins Triggered . | . . . . . Exploration Rate (%) 27 | 3 36 21 58 19 Regions Visited 4 Branch Regions 1 Pre-discovered Areas . | . . . . . Known Exits Taken 2 | . . 1 1 . Unknown Exits Taken 2 | 1 1 . . . Scrap Searched 1 | . . . 1 . Spaces Dug . | . . . . . Terrain Destroyed 15 | . . . 1 14 Melee . | . . . . . Projectile 1 | . . . 1 . AOE 14 | . . . . 14 Terrain Rammed . | . . . . . Walls Destroyed . | . . . . . Machines Disabled . | . . . . . Actions | -11 -10 -9 -9 -8 --------- Run | Scr Mat Mat Min Mat Total 1341 | 61 354 287 287 352 Wait 41 | . 6 15 11 9 Move 1088 | 45 290 208 260 285 Hop . | . . . . . Pick Up 42 | 10 7 7 8 10 Fast Attach 3 | . . 2 . 1 Attach 32 | 6 5 8 2 11 Detach . | . . . . . Swap 9 | . 3 2 . 4 Drop 8 | . 2 2 . 4 Fire 81 | . 41 22 2 16 Melee 24 | . . 12 4 8 Ram 4 | . . . . 4 Kick . | . . . . . Crush 9 | . . 9 . . Escape Stasis . | . . . . . Rewire . | . . . . . Trap . | . . . . . Miscellaneous . | . . . . . Route ------- -11/Scrapyard -10/Materials -9/Materials -9/Mines -8/Materials History --------- Turn | Location | Event 11 | -11/Scrapyard | Discovered new exit (range 15) 69 | -11/Scrapyard | Entered Materials 213 | -10/Materials | Core integrity fell below 50% 303 | -10/Materials | Build established: Mutant 536 | -10/Materials | Discovered new exit (range 15) 553 | -10/Materials | Entered another Materials area 553 | -9/Materials | Evolved 2 slots: Propulsion x1, Utility x1 883 | -9/Materials | Lost 7 parts (2p2n3w) 942 | -9/Materials | Discovered new exit (range 16) 964 | -9/Materials | Identified exit to Mines 966 | -9/Materials | Entered Mines 982 | -9/Mines | Met a Derelict who couldn't figure out how to use a Trap Extractor 1082 | -9/Mines | Received a Rocket Launcher from a helpful Derelict 1124 | -9/Mines | Core integrity fell below 50% 1291 | -9/Mines | Assembled infested the area 1296 | -9/Mines | Assisted by a Guerilla fighting off Assembled 1392 | -9/Mines | Received a Mining Laser from a helpful Derelict 1397 | -9/Mines | Discovered new exit (range 8) 1408 | -9/Mines | Identified exit to Materials 1417 | -9/Mines | Entered Materials 1417 | -8/Materials | Accompanied by 1 ally 1417 | -8/Materials | Evolved 2 slots: Power x1, Weapon x1 1672 | -8/Materials | Central database locked down 1894 | -8/Materials | Lost 8 parts (2p2n4w) 1958 | -8/Materials | Core integrity fell below 50% 1970 | -8/Materials | Core integrity fell below 20% 1972 | -8/Materials | Destroyed by G-47 Trooper with Particle Gun Last Messages --------------- Acquired Particle Gun. Imp. Treads destroyed. Particle Gun destroyed. Aluminum Leg destroyed. Chain reaction triggered in Lgt. Nuclear Core. Lgt. Treads destroyed. Destroyed Lgt. Treads. Terminal disabled. Destroyed Particle Gun. Lightning Gun destroyed. Carbon-fiber Leg destroyed. Lgt. Deuterium Engine destroyed. Lgt. Nuclear Core destroyed. G-47 Trooper misfires. Mining Laser destroyed. U-05 Engineer builds a Wall. U-05 Engineer lays Concrete. Slammed into G-47 Trooper. U-05 Engineer lays Concrete. Slammed into G-50 Soldier. Map ----- +----------------------------------------------------+ | | | | | | | | | | | | | | | | | | | | | | | | | | | | | | | | | ?????????????????????????????????????????????????? | | ?????????????????????????????????????????????????? | | ?????????????????????????????????????????????????? | | ?????????????????????????????????????????????????? | | ?????????????????????????????????????????????????? | | ?????????????????????????????????????????????????? | | ??????????##########??####+####+####?????????????? | | ??????????# ###### +?????????????? | | ??????????# + u g #????????????????? | | ??????????# ######@#### #????????????????? | | ??????????# #??# %% #???????????????????? | | ??????????# #??#u ggg #???????????????????? | | ??????????# #??#ug""" #???????????????????? | | ??????????# #??# """ #???????????????????? | | ??????????# ####! """ #???????????????????? | | ??????????# # ## #????######?????????? | | ###############/###########+## !!= ??????? | | =! % % " !!= ??????? | | ###### "%" !!= ??????? | | %###"##+######### ??????? | | #+##################?? ??????????????? ???????? | | ??????????????????? """??????????????????????? | | #??????????????????""""?????????????????????? | | """ #???????????????????"""?????????????????????? | | """ #???????????????????""??????????????????????? | | """ #???????????????????????????????????????????? | | #???????????????????????????????????????????? | | ######???????????????????????????????????????????? | | ?????????????????????????????????????????????????? | | ?????????????????????????????????????????????????? | | ?????????????????????????????????????????????????? | | ?????????????????????????????????????????????????? | | ?????????????????????????????????????????????????? | | ?????????????????????????????????????????????????? | +----------------------------------------------------+ Best States ------------- Heat Dissipation 31 Energy Generation 25 Energy Capacity 350 Matter Stores 500 Matter Capacity 500 Sight Range 16 Terrain Scan Density 10 Evasion (%) 40 Recoil Reduction 3 Item Schematics ----------------- None Robot Schematics ------------------ None Fabricated ------------ Nothing Alien Tech Used ----------------- None Achievements -------------- I Survived The Infestation Challenges ------------ None Game ------ Seed AntimissileCentriumDriver Manual? 0 Play Time 00:30:06 Cumulative 10.1 hours Start 2020.09.28 @ 06:55:45 End 2020.09.28 @ 07:29:42 Sessions 1 Manual Loads 0 Difficulty Rogue Special Mode None Game No. 16 Rogue 12 Adventurer 4 Explorer 0 Win Type - Total 0 Types 0/0/0/0/0/0/0/0/0 Lore% 11 Gallery% 16 Achievement% 12 Wizard Run 0 Options --------- ASCII 0 Keyboard 0 Movement Mouse Keybinds 0 Fullscreen 2 Font 18/SmallcapsGlow Map View 76x50 Tactical HUD 0 Map Filters NONE Filters NONE Steam 1 RUN: 57f760c3-d7a9-412c-8ccc-8dec6aee7c7d